lending/lending_fUSD_20241014
["ID","MTS","AMOUNT","RATE_DAILY","PERIOD"]
[340237899,1728893528500,-2161.71,0.00046712,120]
[340237900,1728893528522,-2892.12455409,0.000468,90]
[340237901,1728893528544,-1000.0,0.00046849,30]
[340237902,1728893528566,-30764.57613165,0.000469,14]
[340237903,1728893528589,-412.0,0.00046986,90]
[340237904,1728893528614,-50000.0,0.00047,57]
[340237905,1728893528640,-50000.0,0.00047,47]
[340237906,1728893528666,-50000.0,0.00047,67]
[340237907,1728893528689,-6464.73615036,0.00047,120]
[340237908,1728893528713,-1800.0,0.00047,48]
[340237909,1728893528738,-2013.9190177,0.00047,120]
[340237910,1728893528761,-150.0,0.00047,120]
[340237911,1728893528785,-300.0,0.00047,120]
[340237912,1728893528810,-1000.0,0.00047123,30]
[340237913,1728893528833,-2161.71,0.00047123,120]
[340237914,1728893528856,-1000.0,0.00047397,30]
[340237915,1728893528879,-182.76237908,0.0004748,115]
[340237916,1728893528902,-2161.71,0.00047534,120]
[340237917,1728893528925,-1000.0,0.00047671,30]
[340237918,1728893528947,-2000.0,0.000477,120]
[340237919,1728893528971,-2000.0,0.000477,120]
[340237920,1728893528994,-462.0,0.000477,120]
[340237921,1728893529017,-2154.89875829,0.000479,120]
[340237922,1728893529040,-1000.0,0.00047945,30]
[340237923,1728893529063,-2161.71,0.00047945,120]
[340237924,1728893529091,-50000.0,0.00048,48]
[340237925,1728893529117,-50000.0,0.00048,58]
[340237926,1728893529142,-50000.0,0.00048,68]
[340237927,1728893529167,-3517.25891387,0.00048,120]
[340237928,1728893529191,-500.0,0.00048,120]
[340237929,1728893529214,-150.0,0.00048,90]
[340237930,1728893529238,-9500.0,0.00048,120]
[340237931,1728893529261,-150.0,0.00048,120]
[340237932,1728893529283,-3124.18082321,0.00048,120]
[340237933,1728893529306,-4432.49267665,0.00048,120]
[340237934,1728893529329,-163.08265616,0.00048,120]
[340237935,1728893529447,-193.257376,0.00048,120]
[340237936,1728893529470,-175.07337535,0.00048,120]
[340237937,1728893529493,-4922.0,0.00048,120]
[340237938,1728893529517,-1000.0,0.00048219,30]
[340237939,1728893529541,-2161.71,0.00048356,120]
[340237940,1728893529564,-20000.0,0.0004849,30]
[340237941,1728893529589,-1000.0,0.00048493,30]
[340237942,1728893529611,-8173.92643116,0.000487,120]
[340237943,1728893529638,-1000.0,0.00048767,30]
[340237944,1728893529666,-2161.71,0.00048767,120]
[340237945,1728893529691,-900.54319659,0.000488,120]
[340237946,1728893529714,-9771.82479121,0.000489,120]
[340237947,1728893529739,-1140.57400613,0.000489,120]
[340237948,1728893529762,-223.51386317,0.000489,120]
[340237949,1728893529791,-50000.0,0.00049,49]
[340237950,1728893529820,-50000.0,0.00049,59]
[340237951,1728893529850,-50000.0,0.00049,69]
[340237952,1728893529874,-735.3807904,0.00049,30]
[340237953,1728893529898,-290.0,0.00049,120]
[340237954,1728893529922,-540.0,0.00049,120]
[340237955,1728893529945,-1000.0,0.00049041,30]
[340237956,1728893529968,-2161.71,0.00049178,120]
[340237957,1728893529991,-184.299,0.0004925,120]
[340237958,1728893530014,-184.299,0.0004925,120]
[340237959,1728893530038,-184.299,0.0004925,120]
[340237960,1728893530061,-1000.0,0.00049315,30]
[340237961,1728893530085,-3750.0,0.00049315,14]
[340237962,1728893530109,-600.0,0.00049315,24]
[340237963,1728893530132,-151.46,0.00049315,30]
[340237964,1728893530155,-50000.0,0.0004949,120]
[340237965,1728893530178,-1714.08933474,0.000495,120]
[340237966,1728893530200,-1000.0,0.00049589,30]
[340237967,1728893530223,-1000.0,0.00049589,60]
[340237968,1728893530248,-2161.71,0.00049589,120]
[340237969,1728893530271,-1000.0,0.00049863,30]
[340237970,1728893530294,-1000.0,0.00049863,60]
[340237971,1728893530317,-1000.0,0.0004987,120]
[340237972,1728893530343,-413.74519048,0.00049886,90]
[340237973,1728893530366,-296.56973573,0.000499,120]
[340237974,1728893530390,-412.0,0.00049986,120]
[340237975,1728893530417,-50000.0,0.0005,40]
[340237976,1728893530444,-50000.0,0.0005,50]
[340237977,1728893530471,-50000.0,0.0005,60]
[340237978,1728893530496,-304.0,0.0005,120]
[340237979,1728893530519,-672.72206408,0.0005,120]
[340237980,1728893530543,-2588.60859833,0.0005,5]
[340237981,1728893530566,-2662.53384125,0.0005,120]
[340237982,1728893530591,-479.04871047,0.0005,120]
[340237983,1728893530613,-4198.38517168,0.0005,120]
[340237984,1728893530638,-5050.36179212,0.0005,30]
[340237985,1728893530667,-981.8431255,0.0005,120]
[340237986,1728893530692,-3400.47826179,0.0005,120]
[340237987,1728893530718,-2404.63504478,0.0005,60]
[340237988,1728893530743,-500.0,0.0005,120]
[340237989,1728893530768,-300.0,0.0005,120]
[340237990,1728893530792,-150.0,0.0005,30]
[340237991,1728893530817,-150.0,0.0005,120]
[340237992,1728893530843,-1904.56733652,0.0005,120]
[340237993,1728893530867,-200000.0,0.0005,120]
[340237994,1728893530891,-1058.836411,0.0005,30]
[340237995,1728893530915,-610.82652775,0.0005,65]
[340237996,1728893530939,-5353.0,0.0005,7]
[340237997,1728893530964,-262.038695,0.0005,30]
[340237998,1728893530988,-2161.71,0.0005,120]
[340237999,1728893531012,-1000.0,0.00050137,30]
[340238000,1728893531034,-1000.0,0.00050137,60]
[340238001,1728893531056,-2161.71,0.0005041,120]
[340238002,1728893531079,-1000.0,0.00050411,30]
[340238003,1728893531104,-1000.0,0.00050411,60]
[340238004,1728893531127,-1000.0,0.00050685,30]
[340238005,1728893531151,-1000.0,0.00050685,60]
[340238006,1728893531174,-2161.71,0.00050821,120]
[340238007,1728893531196,-1000.0,0.00050959,30]
[340238008,1728893531220,-1000.0,0.00050959,60]
[340238009,1728893531243,-150.0,0.00051,120]
[340238010,1728893531265,-1034.0,0.00051,60]
[340238011,1728893531288,-2161.71,0.00051232,120]
[340238012,1728893531310,-1000.0,0.00051233,30]
[340238013,1728893531406,-1000.0,0.00051233,60]
[340238014,1728893531448,-1000.0,0.00051507,30]
[340238015,1728893531473,-1000.0,0.00051507,60]
[340238016,1728893531497,-2161.71,0.00051643,120]
[340238017,1728893531521,-318.97,0.000517,120]
[340238018,1728893531545,-1000.0,0.00051781,30]
[340238019,1728893531569,-1000.0,0.00051781,60]
[340238020,1728893531597,-2453.95029216,0.0005188,30]
[340238021,1728893531621,-151.0,0.00052,120]
[340238022,1728893531647,-151.0,0.00052,120]
[340238023,1728893531671,-1874.99574546,0.00052,120]
[340238024,1728893531696,-200.0,0.00052,120]
[340238025,1728893531720,-5000.0,0.00052,120]
[340238026,1728893531744,-150.0,0.00052,120]
[340238027,1728893531769,-200000.0,0.00052,120]
[340238028,1728893531796,-3348.17447494,0.00052054,14]
[340238029,1728893531819,-2161.71,0.00052054,120]
[340238030,1728893531844,-1000.0,0.00052055,30]
[340238031,1728893531868,-1000.0,0.00052055,60]
[340238032,1728893531890,-2161.71,0.00052465,120]
[340238033,1728893531917,-274.65853575,0.0005249,120]
[340238034,1728893531941,-151.0,0.00052575,120]
[340238035,1728893531964,-44271.32165589,0.00052581,120]
[340238036,1728893531988,-150.0,0.00052705,120]
[340238037,1728893532013,-807.62842076,0.000528,120]
[340238038,1728893532037,-2161.71,0.00052876,120]
[340238039,1728893532064,-50000.0,0.00053,53]
[340238040,1728893532088,-200.0,0.00053,120]
[340238041,1728893532111,-150.0,0.00053,120]
[340238042,1728893532135,-151.0,0.00053151,120]
[340238043,1728893532159,-2161.91414688,0.00053287,120]
[340238044,1728893532182,-2000.0,0.00053699,120]
[340238045,1728893532206,-151.0,0.00053726,120]
[340238046,1728893532229,-1588.789,0.000538,90]
[340238047,1728893532252,-2000.0,0.00053973,120]
[340238048,1728893532275,-627.93726462,0.00054,120]
[340238049,1728893532299,-17849.09137273,0.00054,120]
[340238050,1728893532322,-43843.91762054,0.00054,120]
[340238051,1728893532346,-300.0,0.00054,120]
[340238052,1728893532369,-300.0,0.00054,120]
[340238053,1728893532393,-5000.0,0.00054,120]
[340238054,1728893532421,-150.0,0.00054,120]
[340238055,1728893532447,-721.48,0.00054127,120]
[340238056,1728893532470,-2000.0,0.00054247,120]
[340238057,1728893532493,-151.0,0.00054301,120]
[340238058,1728893532517,-151.0,0.00054521,120]
[340238059,1728893532540,-2000.0,0.00054521,120]
[340238060,1728893532565,-260.4152117,0.00054794,120]
[340238061,1728893532589,-500.0,0.00054794,120]
[340238062,1728893532613,-500.0,0.00054794,120]
[340238063,1728893532636,-501.62858588,0.00054794,120]
[340238064,1728893532663,-605.99,0.00054794,120]
[340238065,1728893532688,-500.0,0.00054794,120]
[340238066,1728893532713,-183.31478828,0.00054794,120]
[340238067,1728893532736,-500.0,0.00054794,120]
[340238068,1728893532760,-200.0,0.00054794,120]
[340238069,1728893532785,-221.45140452,0.00054794,120]
[340238070,1728893532809,-240.64948406,0.00054794,120]
[340238071,1728893532833,-208.72453033,0.00054794,120]
[340238072,1728893532858,-550.81453543,0.00054794,120]
[340238073,1728893532883,-393.40624093,0.00054794,120]
[340238074,1728893532908,-170.92819415,0.00054794,120]
[340238075,1728893532932,-304.94166206,0.00054794,120]
[340238076,1728893532957,-156.382984,0.00054794,120]
[340238077,1728893532981,-185.66687356,0.00054794,120]
[340238078,1728893533007,-172.34410703,0.00054794,120]
[340238079,1728893533033,-157.2433942,0.00054794,120]
[340238080,1728893533058,-203.73701638,0.00054794,120]
[340238081,1728893533084,-398.5526425,0.00054794,120]
[340238082,1728893533108,-395.81375942,0.00054794,120]
[340238083,1728893533132,-220.53969471,0.00054794,120]
[340238084,1728893533155,-175.72444123,0.00054794,120]
[340238085,1728893533179,-500.0,0.00054794,30]
[340238086,1728893533203,-295.52333438,0.00054794,120]
[340238087,1728893533227,-151.14419991,0.00054794,120]
[340238088,1728893533251,-164.93347167,0.00054794,120]
[340238089,1728893533363,-196.29787899,0.00054794,120]
[340238090,1728893533390,-191.54506316,0.00054794,120]
[340238091,1728893533415,-499.12580479,0.00054794,120]
[340238092,1728893533439,-154.6238107,0.00054794,120]
[340238093,1728893533463,-500.0,0.00054794,120]
[340238094,1728893533489,-500.0,0.00054794,120]
[340238095,1728893533513,-500.0,0.00054794,120]
[340238096,1728893533538,-412.84701839,0.00054794,120]
[340238097,1728893533562,-500.0,0.00054794,120]
[340238098,1728893533588,-217.09240869,0.00054794,120]
[340238099,1728893533611,-171.25903167,0.00054794,120]
[340238100,1728893533634,-500.0,0.00054794,120]
[340238101,1728893533666,-173.25673881,0.00054794,120]
[340238102,1728893533690,-150.7251331,0.00054794,120]
[340238103,1728893533714,-182.8231239,0.00054794,120]
[340238104,1728893533740,-155.41277521,0.00054794,120]
[340238105,1728893533763,-158.35697042,0.00054794,120]
[340238106,1728893533787,-500.0,0.00054794,120]
[340238107,1728893533812,-500.0,0.00054794,120]
[340238108,1728893533835,-390.7703901,0.00054794,120]
[340238109,1728893533859,-562.79854495,0.00054794,120]
[340238110,1728893533881,-515.68611675,0.00054794,120]
[340238111,1728893533904,-227.69001387,0.00054794,120]
[340238112,1728893533927,-223.73308823,0.00054794,120]
[340238113,1728893533951,-500.0,0.00054794,120]
[340238114,1728893533973,-548.56454272,0.00054794,120]
[340238115,1728893533996,-501.54076957,0.00054794,120]
[340238116,1728893534019,-507.89153202,0.00054794,120]
[340238117,1728893534042,-387.27068605,0.00054794,120]
[340238118,1728893534065,-380.81367434,0.00054794,120]
[340238119,1728893534090,-274.98290243,0.00054794,120]
[340238120,1728893534113,-500.0,0.00054794,120]
[340238121,1728893534135,-500.0,0.00054794,120]
[340238122,1728893534160,-300.0,0.00054794,30]
[340238123,1728893534183,-500.0,0.00054794,120]
[340238124,1728893534208,-500.0,0.00054794,120]
[340238125,1728893534231,-500.0,0.00054794,120]
[340238126,1728893534254,-500.0,0.00054794,120]
[340238127,1728893534277,-500.0,0.00054794,120]
[340238128,1728893534301,-792.35,0.00054794,30]
[340238129,1728893534324,-377.30842496,0.00054794,120]
[340238130,1728893534350,-500.0,0.00054794,120]
[340238131,1728893534374,-500.0,0.00054794,120]
[340238132,1728893534398,-500.0,0.00054794,120]
[340238133,1728893534421,-273.07449594,0.00054794,120]
[340238134,1728893534444,-513.67090003,0.00054794,120]
[340238135,1728893534468,-500.0,0.00054794,120]
[340238136,1728893534492,-507.29955549,0.00054794,120]
[340238137,1728893534517,-525.69839887,0.00054794,120]
[340238138,1728893534541,-278.4474299,0.00054794,120]
[340238139,1728893534564,-500.0,0.00054794,120]
[340238140,1728893534590,-500.0,0.00054794,120]
[340238141,1728893534613,-519.2056789,0.00054794,120]
[340238142,1728893534636,-503.96577799,0.00054794,120]
[340238143,1728893534665,-500.0,0.00054794,120]
[340238144,1728893534688,-441.34029088,0.00054794,120]
[340238145,1728893536144,-1489.88,0.00027397,10]
[340238146,1728893536167,-400.0,0.00027397,10]
[340238147,1728893536190,-400.0,0.00027397,10]
[340238148,1728893536212,-400.0,0.00027397,10]
[340238149,1728893536234,-400.0,0.00027397,10]
[340238150,1728893536257,-404.84292564,0.00027397,10]
[340238151,1728893536281,-712.69502178,0.00032,30]
[340238152,1728893536307,-151.0,0.00032877,7]
[340238153,1728893536330,-151.0,0.00032877,7]
[340238154,1728893536358,-151.0,0.00044,14]
[340238155,1728893536380,-151.0,0.00047,14]
[340238156,1728893536404,-941.4013204,0.00053698,30]
[340238157,1728893536426,-65.12748579,0.00054794,120]
[340238159,1728893536448,-505.6282939,0.00054794,120]
[340238160,1728893536470,-203.45475101,0.00054794,120]
[340238161,1728893536492,-626.0802714,0.00054794,120]
[340238162,1728893536514,-186.82187643,0.00054794,30]
[340238163,1728893536542,-565.83880483,0.00054794,120]
[340238164,1728893536565,-500.0,0.00054794,120]
[340238165,1728893536589,-500.0,0.00054794,120]
[340238166,1728893536612,-508.03300572,0.00054794,120]
[340238167,1728893536634,-243.4646842,0.00054794,120]
[340238168,1728893536661,-507.66150723,0.00054794,120]
[340238169,1728893536684,-502.74096451,0.00054794,120]
[340238170,1728893536708,-399.26687892,0.00054794,120]
[340238171,1728893536733,-513.95194399,0.00054794,120]
[340238172,1728893536756,-500.0,0.00054794,120]
[340238173,1728893536778,-525.67463208,0.00054794,120]
[340238174,1728893536801,-271.56134824,0.00054794,120]
[340238175,1728893536822,-506.91764658,0.00054794,120]
[340238176,1728893536845,-507.74118153,0.00054794,120]
[340238177,1728893536868,-267.54604881,0.00054794,120]
[340238178,1728893536891,-500.0,0.00054794,120]
[340238179,1728893536915,-500.0,0.00054794,120]
[340238180,1728893536939,-541.88722666,0.00054794,120]
[340238181,1728893536962,-507.18511296,0.00054794,120]
[340238182,1728893536985,-521.02578406,0.00054794,120]
[340238183,1728893537008,-385.72537653,0.00054794,120]
[340238184,1728893537030,-189.40992371,0.00054794,120]
[340238185,1728893537053,-646.96538905,0.00054794,120]
[340238186,1728893537076,-331.72382706,0.00054794,120]
[340238187,1728893537100,-527.88760901,0.00054794,120]
[340238188,1728893537122,-570.59080181,0.00054794,120]
[340238189,1728893537145,-454.9890388,0.00054794,120]
[340238190,1728893537167,-500.0,0.00054794,120]
[340238191,1728893537189,-440.62298062,0.00054794,120]
[340238192,1728893537211,-500.0,0.00054794,120]
[340238193,1728893537233,-507.82775859,0.00054794,120]
[340238194,1728893537255,-226.49123144,0.00054794,120]
[340238195,1728893537277,-614.61237121,0.00054794,120]
[340238196,1728893537300,-581.88801613,0.00054794,120]
[340238197,1728893537323,-328.28163621,0.00054794,21]
[340238198,1728893537347,-500.0,0.00054794,120]
[340238199,1728893537370,-427.424399,0.00054794,120]
[340238200,1728893537393,-395.04919699,0.00054794,120]
[340238201,1728893537415,-349.12867018,0.00054794,120]
[340238202,1728893537438,-552.74369578,0.00054794,120]
[340238203,1728893537460,-507.26683604,0.00054794,120]
[340238204,1728893537482,-506.74770092,0.00054794,120]
[340238205,1728893537504,-521.53760308,0.00054794,120]
[340238206,1728893537527,-508.58632515,0.00054794,120]
[340238207,1728893537550,-500.0,0.00054794,120]
[340238208,1728893537573,-500.0,0.00054794,120]
[340238209,1728893537598,-341.78204123,0.00054794,120]
[340238210,1728893537711,-514.84209179,0.00054794,120]
[340238211,1728893537736,-531.12795947,0.00054794,120]
[340238212,1728893537761,-589.30398105,0.00054794,120]
[340238213,1728893537785,-343.94937205,0.00054794,120]
[340238214,1728893537808,-507.94754035,0.00054794,120]
[340238215,1728893537833,-549.86293727,0.00054794,120]
[340238216,1728893537858,-500.0,0.00054794,120]
[340238217,1728893537882,-536.67668099,0.00054794,120]
[340238218,1728893537908,-333.70289852,0.00054794,120]
[340238219,1728893537933,-500.0,0.00054794,120]
[340238220,1728893537958,-500.0,0.00054794,120]
[340238221,1728893537983,-282.72661037,0.00054794,120]
[340238222,1728893538007,-527.30390928,0.00054794,120]
[340238223,1728893538032,-624.04477059,0.00054794,120]
[340238224,1728893538056,-500.0,0.00054794,120]
[340238225,1728893538081,-493.97714158,0.00054794,120]
[340238226,1728893538110,-521.45773905,0.00054794,120]
[340238227,1728893538137,-552.57017626,0.00054794,120]
[340238228,1728893538162,-176.41226052,0.00054794,120]
[340238229,1728893538188,-518.91949419,0.00054794,120]
[340238230,1728893538214,-364.94715358,0.00054794,120]
[340238231,1728893538240,-572.27091482,0.00054794,120]
[340238232,1728893538264,-505.5725961,0.00054794,120]
[340238233,1728893538289,-500.0,0.00054794,120]
[340238234,1728893538314,-500.0,0.00054794,120]
[340238235,1728893538339,-547.49246617,0.00054794,120]
[340238236,1728893538364,-526.31239036,0.00054794,120]
[340238237,1728893538389,-500.0,0.00054794,120]
[340238238,1728893538414,-586.13647047,0.00054794,120]
[340238239,1728893538438,-792.11,0.00054794,120]
[340238240,1728893538465,-500.0,0.00054794,120]
[340238241,1728893538489,-517.62278723,0.00054794,120]
[340238242,1728893538513,-535.48385547,0.00054794,120]
[340238243,1728893538542,-522.23498714,0.00054794,120]
[340238244,1728893538565,-500.0,0.00054794,120]
[340238245,1728893538591,-544.11982355,0.00054794,120]
[340238246,1728893538616,-510.31099613,0.00054794,120]
[340238247,1728893538641,-500.0,0.00054794,120]
[340238248,1728893538669,-203.0860388,0.00054794,120]
[340238249,1728893538695,-500.0,0.00054794,120]
[340238250,1728893538722,-500.0,0.00054794,120]
[340238251,1728893538750,-527.84861132,0.00054794,120]
[340238252,1728893538780,-501.48697256,0.00054794,120]
[340238253,1728893538805,-500.0,0.00054794,120]
[340238254,1728893538830,-500.0,0.00054794,120]
[340238255,1728893538855,-522.48181298,0.00054794,120]
[340238256,1728893538880,-184.47630073,0.00054794,120]
[340238257,1728893538904,-516.87815601,0.00054794,120]
[340238258,1728893538929,-523.49104259,0.00054794,120]
[340238259,1728893538954,-500.0,0.00054794,120]
[340238260,1728893538978,-507.50981286,0.00054794,120]
[340238261,1728893539003,-500.0,0.00054794,120]
[340238262,1728893539027,-500.0,0.00054794,120]
[340238263,1728893539051,-564.60633451,0.00054794,120]
[340238264,1728893539075,-500.0,0.00054794,7]
[340238265,1728893539100,-500.0,0.00054794,120]
[340238266,1728893539124,-500.0,0.00054794,120]
[340238267,1728893539148,-500.0,0.00054794,120]
[340238268,1728893539171,-500.0,0.00054794,30]
[340238269,1728893539195,-513.02517613,0.00054794,120]
[340238270,1728893539218,-500.0,0.00054794,120]
[340238271,1728893539242,-500.0,0.00054794,120]
[340238272,1728893539265,-500.0,0.00054794,120]
[340238273,1728893539289,-500.0,0.00054794,120]
[340238274,1728893539312,-500.0,0.00054794,120]
[340238275,1728893539337,-500.0,0.00054794,120]
[340238276,1728893539366,-500.0,0.00054794,120]
[340238277,1728893539390,-500.0,0.00054794,120]
[340238278,1728893539497,-500.0,0.00054794,120]
[340238279,1728893539526,-500.0,0.00054794,120]
[340238280,1728893539552,-320.57800832,0.00054794,120]
[340238281,1728893539577,-500.0,0.00054794,120]
[340238282,1728893539603,-500.0,0.00054794,120]
[340238283,1728893539627,-500.0,0.00054794,120]
[340238284,1728893539657,-500.0,0.00054794,120]
[340238285,1728893539684,-233.48394444,0.00054794,120]
[340238286,1728893539710,-576.89484485,0.00054794,120]
[340238287,1728893539738,-500.0,0.00054794,120]
[340238288,1728893539764,-289.83814354,0.00054794,120]
[340238289,1728893539789,-500.0,0.00054794,120]
[340238290,1728893539815,-500.0,0.00054794,120]
[340238291,1728893539842,-294.63949248,0.00054794,120]
[340238292,1728893539867,-500.0,0.00054794,120]
[340238293,1728893539894,-396.32901039,0.00054794,120]
[340238294,1728893539924,-500.0,0.00054794,120]
[340238295,1728893539948,-532.92989564,0.00054794,120]
[340238296,1728893539974,-639.62050801,0.00054794,120]
[340238297,1728893539998,-379.26416314,0.00054794,120]
[340238298,1728893540023,-524.11751467,0.00054794,120]
[340238299,1728893540046,-363.3675598,0.00054794,120]
[340238300,1728893540070,-340.63521758,0.00054794,120]
[340238301,1728893540096,-302.9426666,0.00054794,120]
[340238302,1728893540119,-627.62283127,0.00054794,120]
[340238303,1728893540143,-567.06083206,0.00054794,120]
[340238304,1728893540166,-303.27239667,0.00054794,120]
[340238305,1728893540190,-195.23815966,0.00054794,120]
[340238306,1728893540213,-257.97494841,0.00054794,120]
[340238307,1728893540237,-561.2460817,0.00054794,120]
[340238308,1728893540261,-433.17731018,0.00054794,120]
[340238309,1728893540284,-311.5882064,0.00054794,120]
[340238310,1728893540308,-330.57236212,0.00054794,120]
[340238311,1728893540332,-500.0,0.00054794,120]
[340238312,1728893540357,-234.0351063,0.00054794,120]
[340238313,1728893540385,-382.29287457,0.00054794,120]
[340238314,1728893540409,-530.12543468,0.00054794,120]
[340238315,1728893540433,-400.59200992,0.00054794,120]
[340238316,1728893540459,-500.0,0.00054794,120]
[340238317,1728893540484,-500.0,0.00054794,120]
[340238318,1728893540509,-500.0,0.00054794,120]
[340238319,1728893540533,-210.51756549,0.00054794,120]
[340238320,1728893540557,-637.76242198,0.00054794,120]
[340238321,1728893540581,-314.99754012,0.00054794,120]
[340238322,1728893540615,-928.91,0.00054794,7]
[340238323,1728893540643,-631.8465668,0.00054794,120]
[340238324,1728893540670,-510.83733591,0.00054794,120]
[340238325,1728893540697,-500.0,0.00054794,120]
[340238326,1728893540724,-531.63989505,0.00054794,120]
[340238327,1728893540750,-350.4831983,0.00054794,120]
[340238328,1728893540774,-544.79590178,0.00054794,120]
[340238329,1728893540798,-532.89929957,0.00054794,120]
[340238330,1728893540821,-509.38626033,0.00054794,120]
[340238331,1728893540849,-513.82589299,0.00054794,120]
[340238332,1728893540874,-500.0,0.00054794,120]
[340238333,1728893540898,-509.76058539,0.00054794,120]
[340238334,1728893540923,-235.32833944,0.00054794,120]
[340238335,1728893540947,-500.0,0.00054794,120]
[340238336,1728893540972,-543.34075265,0.00054794,120]
[340238337,1728893540995,-590.44250054,0.00054794,120]
[340238338,1728893541020,-500.0,0.00054794,120]
[340238339,1728893541043,-519.92565107,0.00054794,120]
[340238340,1728893541066,-512.38459464,0.00054794,120]
[340238341,1728893541094,-500.0,0.00054794,120]
[340238342,1728893541117,-511.881242,0.00054794,120]
[340238343,1728893541142,-542.30537181,0.00054794,120]
[340238344,1728893541166,-507.74302663,0.00054794,120]
[340238345,1728893541271,-510.88554172,0.00054794,120]
[340238346,1728893541295,-532.66089517,0.00054794,120]
[340238347,1728893541320,-517.75511656,0.00054794,120]
[340238348,1728893541347,-530.37845593,0.00054794,120]
[340238349,1728893541371,-500.0,0.00054794,120]
[340238350,1728893541394,-500.0,0.00054794,120]
[340238351,1728893541418,-500.0,0.00054794,120]
[340238352,1728893541441,-399.58070291,0.00054794,120]
[340238353,1728893541465,-500.0,0.00054794,120]
[340238354,1728893541489,-500.0,0.00054794,120]
[340238355,1728893541513,-530.77363187,0.00054794,120]
[340238356,1728893541536,-516.55256902,0.00054794,120]
[340238357,1728893541560,-528.54942626,0.00054794,120]
[340238358,1728893541583,-500.0,0.00054794,120]
[340238359,1728893541609,-518.34554632,0.00054794,120]
[340238360,1728893541633,-500.0,0.00054794,120]
[340238361,1728893541661,-645.25788268,0.00054794,120]
[340238362,1728893541686,-500.0,0.00054794,120]
[340238363,1728893541710,-500.0,0.00054794,120]
[340238364,1728893541737,-500.0,0.00054794,120]
[340238365,1728893541760,-510.63013873,0.00054794,120]
[340238366,1728893541784,-530.48585549,0.00054794,120]
[340238367,1728893541807,-534.61078935,0.00054794,120]
[340238368,1728893541831,-614.37498899,0.00054794,120]
[340238369,1728893541857,-500.0,0.00054794,120]
[340238370,1728893541881,-521.68251994,0.00054794,120]
[340238371,1728893541906,-500.0,0.00054794,120]
[340238372,1728893541929,-530.71255544,0.00054794,120]
[340238373,1728893541953,-585.77910686,0.00054794,120]
[340238374,1728893541980,-178.22293808,0.00054794,120]
[340238375,1728893542006,-521.10005979,0.00054794,120]
[340238376,1728893542033,-513.80048171,0.00054794,120]
[340238377,1728893542059,-508.68559655,0.00054794,120]
[340238378,1728893542084,-613.86448341,0.00054794,120]
[340238379,1728893542115,-513.46873928,0.00054794,120]
[340238380,1728893542141,-527.3082417,0.00054794,120]
[340238381,1728893542165,-525.05236726,0.00054794,120]
[340238382,1728893542189,-500.0,0.00054794,120]
[340238383,1728893542214,-500.0,0.00054794,120]
[340238384,1728893542239,-551.06443212,0.00054794,120]
[340238385,1728893542263,-512.82854129,0.00054794,120]
[340238386,1728893542287,-188.26281874,0.00054794,120]
[340238387,1728893542310,-500.0,0.00054794,120]
[340238388,1728893542334,-499.38213297,0.00054794,120]
[340238389,1728893542363,-572.62060137,0.00054794,120]
[340238390,1728893542387,-158.0160217,0.00054794,120]
[340238391,1728893542411,-507.91641017,0.00054794,120]
[340238392,1728893542435,-500.0,0.00054794,120]
[340238393,1728893542460,-526.0842446,0.00054794,120]
[340238394,1728893542484,-500.0,0.00054794,120]
[340238395,1728893542508,-527.09147942,0.00054794,120]
[340238396,1728893542534,-500.0,0.00054794,120]
[340238397,1728893542559,-555.14775138,0.00054794,120]
[340238398,1728893542584,-500.0,0.00054794,120]
[340238399,1728893542612,-574.79162406,0.00054794,120]